bitfinex/quotes_ETHUSD_20230118
["timestamp","ask_amount","ask_price","bid_price","bid_amount"]
[1674022462514,38.10502414,1585.0,1584.9,0.48240897]
[1674022462734,36.45458435,1585.0,1584.9,0.48240897]
[1674022463253,37.44538967,1585.0,1584.9,0.48240897]
[1674022465924,36.45458435,1585.0,1584.9,0.48240897]
[1674022466721,38.10502414,1585.0,1584.9,0.48240897]
[1674022467592,43.08302414,1585.0,1584.9,0.48240897]
[1674022467757,42.39939341,1585.0,1584.9,0.48240897]
[1674022468234,42.07015642,1585.0,1584.9,0.48240897]
[1674022471472,35.5937932,1585.0,1584.9,0.48240897]
[1674022471690,30.46158267,1585.0,1584.9,0.48240897]
[1674022471875,29.47064192,1585.0,1584.9,0.48240897]
[1674022472084,30.46158267,1585.0,1584.9,0.48240897]
[1674022472349,29.80094211,1585.0,1584.9,0.48240897]
[1674022473282,29.47057527,1585.0,1584.9,0.48240897]
[1674022473661,12.79311396,1585.0,1584.9,0.48240897]
[1674022474020,12.79311396,1585.0,1584.9,0.66619934]
[1674022475598,13.02311396,1585.0,1584.9,0.66619934]
[1674022481084,19.33225396,1585.0,1584.9,0.66619934]
[1674022481584,19.33225396,1585.0,1584.9,0.48240897]
[1674022492044,19.99282787,1585.0,1584.9,0.48240897]
[1674022492898,19.33225396,1585.0,1584.9,0.48240897]
[1674022493971,19.99282787,1585.0,1584.9,0.48240897]
[1674022494305,13.68368787,1585.0,1584.9,0.48240897]
[1674022494514,6.48397396,1585.0,1584.9,1.86509934]
[1674022494980,19.10225396,1585.0,1584.9,0.66709934]
[1674022495161,19.33225396,1585.0,1584.9,0.48240897]
[1674022495514,26.30196787,1585.0,1584.9,0.48240897]
[1674022497019,26.45747985,1585.0,1584.9,0.47935586]
[1674022497242,26.30196787,1585.0,1584.9,0.47935586]
[1674022497564,26.45747522,1585.0,1584.9,0.47935586]
[1674022497782,29.67768447,1585.0,1584.9,0.47935586]
[1674022498095,29.83319182,1585.0,1584.9,0.47935586]
[1674022500193,26.53169638,1585.0,1584.9,0.47935586]
[1674022500996,23.00047243,1585.0,1584.9,0.47935586]
[1674022501841,23.00047243,1585.0,1584.9,0.11651235]
[1674022504034,23.33083927,1585.0,1584.9,0.11651235]
[1674022504240,23.99130384,1585.0,1584.9,0.11651235]
[1674022504568,23.99130364,1585.0,1584.9,0.11651235]
[1674022504799,26.50851565,1585.0,1584.9,0.11651235]
[1674022505035,27.16899045,1585.0,1584.9,0.11651235]
[1674022505326,27.3244978,1585.0,1584.9,0.11651235]
[1674022506147,27.32454949,1585.0,1584.9,0.11651235]
[1674022506334,26.664023,1585.0,1584.9,0.11651235]
[1674022507840,26.50851565,1585.0,1584.9,0.11651235]
[1674022508056,26.664023,1585.0,1584.9,0.11651235]
[1674022509277,27.9852258,1585.0,1584.9,0.11651235]
[1674022509960,26.664023,1585.0,1584.9,0.11651235]
[1674022510501,27.9852258,1585.0,1584.9,0.11651235]
[1674022510667,26.664023,1585.0,1584.9,0.11651235]
[1674022512136,27.9852258,1585.0,1584.9,0.11651235]
[1674022512452,26.664023,1585.0,1584.9,0.11651235]
[1674022512661,27.9852258,1585.0,1584.9,0.11651235]
[1674022512909,26.664023,1585.0,1584.9,0.11651235]
[1674022513275,27.9852258,1585.0,1584.9,0.11651235]
[1674022515167,26.99428505,1585.0,1584.9,0.11651235]
[1674022515593,28.64472484,1585.0,1584.9,0.11651235]
[1674022515919,26.99428505,1585.0,1584.9,0.11651235]
[1674022516574,31.64472484,1585.0,1584.9,0.11651235]
[1674022517387,31.64472484,1585.0,1584.9,0.11419242]
[1674022518172,29.99428505,1585.0,1584.9,0.11419242]
[1674022521634,31.64472484,1585.0,1584.9,0.11419242]
[1674022521970,29.99428505,1585.0,1584.9,0.11419242]
[1674022527713,30.32352204,1585.0,1584.9,0.11419242]
[1674022527968,31.64396059,1585.0,1584.9,0.11419242]
[1674022529971,29.9935208,1585.0,1584.9,0.11419242]
[1674022531385,32.84196059,1585.0,1584.9,0.11419242]
[1674022531737,31.52152204,1585.0,1584.9,0.11419242]
[1674022534501,32.84198878,1585.0,1584.9,0.11419242]
[1674022535849,31.52152204,1585.0,1584.9,0.11419242]
[1674022536297,32.84213013,1585.0,1584.9,0.11419242]
[1674022537179,29.99369034,1585.0,1584.9,0.11419242]
[1674022537435,26.48592739,1585.0,1584.9,0.11419242]
[1674022538177,27.80653548,1585.0,1584.9,0.11419242]
[1674022538396,26.48592739,1585.0,1584.9,0.11419242]
[1674022539452,26.48592739,1585.0,1584.9,0.11115563]
[1674022539809,26.81601396,1585.0,1584.9,0.11115563]
[1674022540015,30.41333433,1585.0,1584.9,0.11115563]
[1674022542552,31.61133433,1585.0,1584.9,0.11115563]
[1674022543012,33.26177412,1585.0,1584.9,0.11115563]
[1674022543590,31.61133433,1585.0,1584.9,0.11115563]
[1674022543855,33.26177412,1585.0,1584.9,0.11115563]
[1674022544240,31.94116603,1585.0,1584.9,0.11115563]
[1674022550167,30.29072624,1585.0,1584.9,0.11115563]
[1674022550418,30.29072624,1585.0,1584.9,0.09034484]
[1674022550580,40.79588653,1585.0,1584.9,0.09034484]
[1674022550963,41.46895388,1585.0,1584.9,0.09034484]
[1674022551179,41.46895388,1585.0,1584.9,0.04898187]
[1674022551607,49.25735388,1585.0,1584.9,0.04898187]
[1674022551800,51.23781661,1585.0,1584.9,0.04898187]
[1674022552488,51.23781661,1585.0,1584.8,0.16649474]
[1674022552804,45.40143544,1584.9,1584.8,0.16649474]
[1674022552955,50.51297544,1584.9,1584.8,0.16649474]
[1674022554024,48.86252798,1584.9,1584.8,0.16649474]
[1674022556232,50.51225172,1584.9,1584.8,0.16649474]
[1674022556651,48.86252798,1584.9,1584.8,0.16649474]
[1674022557088,48.92838243,1584.9,1584.8,0.16649474]
[1674022558750,52.61634418,1584.9,1584.8,0.16649474]
[1674022558956,56.43154864,1584.9,1584.8,0.16649474]
[1674022559418,55.79480691,1584.9,1584.8,0.16649474]
[1674022559630,53.81434418,1584.9,1584.8,0.16649474]
[1674022560802,50.12638243,1584.9,1584.8,0.16649474]
[1674022561828,51.77518882,1584.9,1584.8,0.16649474]
[1674022565285,51.77518882,1584.9,1584.8,0.13217293]
[1674022565750,52.41193055,1584.9,1584.8,0.13217293]
[1674022567586,46.88429343,1584.9,1584.8,0.13217293]
[1674022567816,23.25607576,1584.9,1584.8,0.13217293]
[1674022568493,23.10056841,1584.9,1584.8,0.13217293]
[1674022569065,26.10056841,1584.9,1584.8,0.13217293]
[1674022569620,26.33056841,1584.9,1584.8,0.13217293]
[1674022569816,26.48607576,1584.9,1584.8,0.13217293]
[1674022572216,26.99022979,1584.9,1584.8,0.04696469]
[1674022572427,27.14573714,1584.9,1584.8,0.04696469]
[1674022573968,26.48607576,1584.9,1584.8,0.04696469]
[1674022574635,26.99024204,1584.9,1584.8,0.04696469]
[1674022574863,27.14574939,1584.9,1584.8,0.04696469]
[1674022575613,26.48607576,1584.9,1584.8,0.04696469]
[1674022576012,26.9902933,1584.9,1584.8,0.04696469]
[1674022576225,27.1458009,1584.9,1584.8,0.04696469]
[1674022576663,26.48607576,1584.9,1584.8,0.04696469]
[1674022577051,28.8478011,1584.9,1584.8,0.04696469]
[1674022577366,45.82907079,1584.9,1584.8,0.04696469]
[1674022580681,47.47787718,1584.9,1584.8,0.04696469]
[1674022581041,45.82907079,1584.9,1584.8,0.04696469]
[1674022582256,43.0038355,1584.9,1584.8,0.04696469]
[1674022583470,57.36832209,1584.9,1584.8,0.03731489]
[1674022583925,60.02185217,1584.9,1584.8,0.03731489]
[1674022584879,60.02185217,1584.9,1584.8,4.89e-06]
[1674022585095,62.85144224,1584.9,1584.7,0.14117158]
[1674022585398,33.25499611,1584.8,1584.7,0.14117158]
[1674022587479,33.25287682,1584.8,1584.7,0.14117158]
[1674022587876,31.60283213,1584.8,1584.7,0.14117158]
[1674022588095,33.25307097,1584.8,1584.7,0.14117158]
[1674022588321,34.78086161,1584.8,1584.7,0.14117158]
[1674022589807,34.84671606,1584.8,1584.7,0.14117158]
[1674022592095,33.53447722,1584.8,1584.7,0.14117158]
[1674022592282,35.18496342,1584.8,1584.7,0.14117158]
[1674022592969,33.98696342,1584.8,1584.7,0.14117158]
[1674022594849,32.79496342,1584.8,1584.7,0.14117158]
[1674022598344,32.46494566,1584.8,1584.7,0.14117158]
[1674022598544,34.11543186,1584.8,1584.7,0.14117158]
[1674022598855,32.46494566,1584.8,1584.7,0.14117158]
[1674022599223,32.79496342,1584.8,1584.7,0.14117158]
[1674022599639,34.11538818,1584.8,1584.7,0.14117158]
[1674022599848,32.79496342,1584.8,1584.7,0.14117158]
[1674022600324,34.11542895,1584.8,1584.7,0.14117158]
[1674022601124,32.46494275,1584.8,1584.7,0.14117158]
[1674022602083,28.14475502,1584.8,1584.7,0.14117158]
[1674022602295,26.82428949,1584.8,1584.7,0.14117158]
[1674022602640,27.15415211,1584.8,1584.7,0.14117158]
[1674022603571,28.14488258,1584.8,1584.7,0.14117158]
[1674022603815,28.14486985,1584.8,1584.7,0.14117158]
[1674022604171,28.14485144,1584.8,1584.7,0.14117158]
[1674022604434,28.14484605,1584.8,1584.7,0.14117158]
[1674022604677,27.15415211,1584.8,1584.7,0.14117158]
[1674022604821,32.06556994,1584.8,1584.7,0.14117158]
[1674022606389,27.15415211,1584.8,1584.7,0.14117158]
[1674022609588,26.8244541,1584.8,1584.7,0.14117158]
[1674022609804,28.14491963,1584.8,1584.7,0.14117158]
[1674022610952,26.8244541,1584.8,1584.7,0.14117158]
[1674022611793,26.8244541,1584.8,1584.7,0.13916803]
[1674022612474,28.14491963,1584.8,1584.7,0.13916803]
[1674022613313,28.14513532,1584.8,1584.7,0.13916803]
[1674022613733,27.15415211,1584.8,1584.7,0.13916803]
[1674022614519,28.14525835,1584.8,1584.7,0.13916803]
[1674022615309,27.15415211,1584.8,1584.7,0.13916803]
[1674022615953,32.06556994,1584.8,1584.7,0.13916803]
[1674022618779,33.05680926,1584.8,1584.7,0.13916803]
[1674022618992,28.14539143,1584.8,1584.7,0.13916803]
[1674022619238,27.15415211,1584.8,1584.7,0.13916803]
[1674022620826,28.14548673,1584.8,1584.7,0.13916803]
[1674022622522,16.9546962,1584.8,1584.7,0.13916803]
[1674022622691,3.51835923,1584.8,1584.7,2.53216803]
[1674022622875,3.51835923,1584.8,1584.7,2.57168483]
[1674022623085,3.51835923,1584.8,1584.7,2.09238483]
[1674022624720,3.45250478,1584.8,1584.7,2.09238483]
[1674022629863,3.45250478,1584.8,1584.7,1.5710168]
[1674022631224,3.45250478,1584.8,1584.7,2.7670168]
[1674022631483,0.338,1584.8,1584.7,23.99182742]
[1674022632102,0.338,1584.8,1584.7,22.8960368]
[1674022632754,0.338,1584.8,1584.7,22.9620368]
[1674022633064,0.338,1584.8,1584.7,15.4536968]
[1674022634878,0.338,1584.8,1584.7,1.6350168]
[1674022637169,3.45462407,1584.8,1584.7,0.066]
[1674022640433,3.45462407,1584.8,1584.7,1.305]
[1674022640624,3.45462407,1584.8,1584.7,1.628]
[1674022641634,3.45462407,1584.8,1584.7,2.826]
[1674022645114,3.45462407,1584.8,1584.7,1.198]
[1674022650795,3.45462407,1584.8,1584.7,1.4376]
[1674022651739,3.45462407,1584.8,1584.7,1.198]
[1674022654999,3.45462407,1584.8,1584.6,6.31069]
[1674022655252,3.40462407,1584.8,1584.6,6.31069]
[1674022655820,3.40462407,1584.8,1584.6,6.36069]
[1674022656192,3.40462407,1584.8,1584.6,6.37669]
[1674022656382,3.40462407,1584.8,1584.6,9.61765644]
[1674022656929,3.40462407,1584.8,1584.6,3.30696644]
[1674022659769,3.40462407,1584.8,1584.6,9.61768644]
[1674022659989,3.40462407,1584.8,1584.6,11.10446693]
[1674022666605,0.288,1584.8,1584.6,17.41520693]
[1674022666783,0.288,1584.8,1584.7,1.74152069]
[1674022667549,0.288,1584.8,1584.7,2.83741341]
[1674022668460,0.288,1584.8,1584.7,1.74152069]
[1674022668673,0.288,1584.8,1584.7,2.83740946]
[1674022669069,0.288,1584.8,1584.7,1.74152069]
[1674022669541,0.288,1584.8,1584.7,2.83740455]
[1674022669898,0.288,1584.8,1584.7,1.74152069]
[1674022673389,0.288,1584.8,1584.7,2.83742017]
[1674022674134,0.288,1584.8,1584.7,1.74152069]
[1674022674958,3.40462407,1584.8,1584.6,5.98274693]
[1674022675218,3.40462407,1584.8,1584.6,0.066]
[1674022678171,4.06557369,1584.8,1584.6,0.066]
[1674022678363,3.40462407,1584.8,1584.6,0.066]
[1674022682630,3.40462407,1584.8,1584.6,6.37671]
[1674022683680,3.40462407,1584.8,1584.6,7.86349049]
[1674022683953,3.40462407,1584.8,1584.6,6.37671]
[1674022688988,3.40462407,1584.8,1584.6,7.72238042]
[1674022689356,3.15462407,1584.8,1584.6,9.20916091]
[1674022690320,3.15462407,1584.8,1584.6,9.86987468]
[1674022690529,3.15462407,1584.8,1584.6,9.20916091]
[1674022691097,3.15462407,1584.8,1584.6,9.86987468]
[1674022691248,3.15462407,1584.8,1584.7,0.98698747]
[1674022691459,3.15462407,1584.8,1584.6,9.86987468]
[1674022692421,3.15462407,1584.8,1584.6,9.20916091]
[1674022694150,3.15462407,1584.8,1584.6,9.86987468]
[1674022694294,3.15462407,1584.8,1584.6,9.20916091]
[1674022694720,3.15462407,1584.8,1584.6,7.72238042]
[1674022695036,3.15462407,1584.8,1584.6,9.20916091]
[1674022696246,3.15462407,1584.8,1584.6,7.86349049]
[1674022696435,3.15462407,1584.8,1584.6,6.37671]
[1674022700852,3.81557369,1584.8,1584.6,6.37671]
[1674022701085,3.15462407,1584.8,1584.6,6.37671]
[1674022701238,3.81557369,1584.8,1584.6,6.37671]
[1674022703704,3.81557369,1584.8,1584.6,0.066]
[1674022704277,4.80690831,1584.8,1584.6,0.066]
[1674022704492,3.81557369,1584.8,1584.6,0.066]
[1674022705344,3.15462407,1584.8,1584.6,0.066]
[1674022705547,3.81557369,1584.8,1584.6,0.066]
[1674022705792,3.15462407,1584.8,1584.6,0.066]
[1674022706341,3.15462407,1584.8,1584.6,6.37673]
[1674022706556,3.15462407,1584.8,1584.6,9.5641856]
[1674022707116,3.15462407,1584.8,1584.6,11.05175779]
[1674022707964,3.15462407,1584.8,1584.6,9.5641856]
[1674022708443,3.15462407,1584.8,1584.6,11.05177601]
[1674022710309,3.15462407,1584.8,1584.6,11.05191013]
[1674022711569,3.81557369,1584.8,1584.6,1.55372453]
[1674022711781,3.81557369,1584.8,1584.6,0.066]
[1674022712105,3.81557369,1584.8,1584.6,0.06261209]
[1674022713381,3.15462407,1584.8,1584.6,0.06261209]
[1674022715247,3.81557369,1584.8,1584.6,0.06261209]
[1674022715787,3.15462407,1584.8,1584.6,0.06261209]
[1674022716170,3.81557369,1584.8,1584.6,0.06261209]
[1674022717877,3.11662407,1584.7,1584.6,0.06261209]
[1674022721236,3.11662407,1584.7,1584.6,1.1585693]
[1674022722540,3.11662407,1584.7,1584.6,1.15857384]
[1674022723530,3.11662407,1584.7,1584.6,0.06261209]
[1674022728627,3.11662407,1584.7,1584.6,1.15855248]
[1674022728790,3.11662407,1584.7,1584.6,1.09594039]
[1674022730993,3.11662407,1584.7,1584.6,7.40668039]
[1674022731671,3.11662407,1584.7,1584.6,10.70338685]
[1674022731884,3.11662407,1584.7,1584.6,12.19107093]
[1674022733298,0.10385445,1584.8,1584.6,18.50181093]
[1674022733460,0.10030579,1584.8,1584.6,17.40587054]
[1674022733691,3.21692986,1584.8,1584.6,17.40587054]
[1674022733832,3.21692986,1584.8,1584.7,1.74058705]
[1674022738591,3.21692986,1584.8,1584.6,11.09494054]
[1674022739441,3.21692986,1584.8,1584.6,11.09462164]
[1674022743928,3.21692986,1584.8,1584.6,9.60725646]
[1674022744831,3.21692986,1584.8,1584.6,11.09473626]
[1674022745352,3.21692986,1584.8,1584.6,9.60725646]
[1674022745504,3.21692986,1584.8,1584.6,6.31055]
[1674022746037,3.87787948,1584.8,1584.5,17.10103632]
[1674022746666,3.11662407,1584.7,1584.5,18.5885779]
[1674022746882,3.11662407,1584.7,1584.5,17.10103632]
[1674022751805,3.11662407,1584.7,1584.5,10.79021632]
[1674022752072,3.11662407,1584.6,1584.5,0.24161632]
[1674022754803,4.11662407,1584.6,1584.5,0.24161632]
[1674022755141,19.81838831,1584.6,1584.5,0.24161632]
[1674022755292,25.46817869,1584.6,1584.5,0.24161632]
[1674022755500,29.49926988,1584.6,1584.5,0.24161632]
[1674022755868,30.15972928,1584.6,1584.5,0.24161632]
[1674022756098,29.16839466,1584.6,1584.5,0.24161632]
[1674022756554,30.15972928,1584.6,1584.5,0.24161632]
[1674022756984,29.49926988,1584.6,1584.5,0.24161632]
[1674022757338,32.49926988,1584.6,1584.5,0.24161632]
[1674022757499,33.3137827,1584.6,1584.5,0.24161632]
[1674022758049,32.32244808,1584.6,1584.5,0.24161632]
[1674022759318,36.33282941,1584.6,1584.5,0.24161632]
[1674022759484,38.29003667,1584.6,1584.5,0.24161632]
[1674022759700,34.61095691,1584.6,1584.5,0.24161632]
[1674022759915,33.29049138,1584.6,1584.5,0.24161632]
[1674022760161,41.14839138,1584.6,1584.5,0.24161632]
[1674022760580,44.82747114,1584.6,1584.5,0.24161632]
[1674022760810,44.82747114,1584.6,1584.5,0.1959606]
[1674022760811,45.15660205,1584.6,1584.5,0.1959606]
[1674022761101,4.783,1584.5,1584.3,0.0037338]
[1674022761343,26.12818525,1584.4,1584.3,0.0037338]
[1674022761512,27.57852383,1584.4,1584.3,0.0037338]
[1674022761721,30.57852383,1584.4,1584.3,0.0037338]
[1674022762135,28.7762558,1584.4,1584.3,0.0037338]
[1674022763066,34.25655078,1584.4,1584.3,0.0037338]
[1674022763277,34.7854337,1584.4,1584.3,0.0037338]
[1674022763699,39.88666195,1584.4,1584.3,0.0037338]
[1674022763909,38.5684337,1584.4,1584.3,0.0037338]
[1674022764123,38.23774574,1584.4,1584.3,0.0037338]
[1674022764492,52.23774574,1584.4,1584.3,0.0037338]
[1674022765337,53.22641692,1584.4,1584.3,0.0037338]
[1674022765505,48.55866598,1584.4,1584.3,0.0037338]
[1674022765860,48.59220175,1584.4,1584.3,0.0037338]
[1674022766077,48.40523902,1584.4,1584.3,0.0037338]
[1674022766382,47.7472558,1584.4,1584.3,0.0037338]
[1674022766588,47.81311025,1584.4,1584.3,0.0037338]
[1674022768215,46.62011025,1584.4,1584.3,0.0037338]
[1674022770918,50.29919001,1584.4,1584.3,0.0037338]
[1674022771576,51.49419001,1584.4,1584.3,0.0037338]
[1674022771838,52.33886111,1584.4,1584.3,0.0037338]
[1674022771997,52.15217323,1584.4,1584.3,0.0037338]
[1674022773358,51.49419001,1584.4,1584.3,0.0037338]
[1674022773898,47.81511025,1584.4,1584.3,0.0037338]
[1674022774758,51.49419001,1584.4,1584.3,0.0037338]
[1674022776492,47.81511025,1584.4,1584.3,0.0037338]
[1674022777305,23.71879,1584.3,1584.2,0.14152381]
[1674022777487,36.81566585,1584.3,1584.2,0.14152381]
[1674022777692,37.45240758,1584.3,1584.2,0.14152381]
[1674022777964,41.13148734,1584.3,1584.2,0.14152381]
[1674022778172,37.45240758,1584.3,1584.2,0.14152381]
[1674022779901,37.51826203,1584.3,1584.2,0.14152381]
[1674022781607,36.8815203,1584.3,1584.2,0.14152381]
[1674022781852,37.51826203,1584.3,1584.2,0.14152381]
[1674022782435,41.19734179,1584.3,1584.2,0.14152381]
[1674022782649,37.51826203,1584.3,1584.2,0.14152381]
[1674022788020,38.17624525,1584.3,1584.2,0.14152381]
[1674022788679,37.51826203,1584.3,1584.2,0.14152381]
[1674022789884,38.17624525,1584.3,1584.2,0.14152381]
[1674022790224,38.36352899,1584.3,1584.2,0.14152381]
[1674022791131,38.17624525,1584.3,1584.2,0.14152381]
[1674022791944,39.35228637,1584.3,1584.2,0.14152381]
[1674022792188,38.69430315,1584.3,1584.2,0.14152381]
[1674022793949,39.02386022,1584.3,1584.2,0.14152381]
[1674022795945,40.67434642,1584.3,1584.2,0.14152381]
[1674022797131,39.02386022,1584.3,1584.2,0.14152381]
[1674022797975,40.67434642,1584.3,1584.2,0.14152381]
[1674022798412,39.02386022,1584.3,1584.2,0.14152381]
[1674022798802,37.82586022,1584.3,1584.2,0.14152381]
[1674022799044,27.72460248,1584.3,1584.2,0.14152381]
[1674022799891,29.04283073,1584.3,1584.2,0.14152381]
[1674022800270,28.05186671,1584.3,1584.2,0.14152381]
[1674022801122,29.70235291,1584.3,1584.2,0.14152381]
[1674022801336,29.70235291,1584.3,1584.2,0.13803003]
[1674022801337,28.38412466,1584.3,1584.2,0.13803003]
[1674022801547,33.9973664,1584.3,1584.2,0.13803003]
[1674022804481,32.98362193,1584.3,1584.2,0.13803003]
[1674022804891,36.76662193,1584.3,1584.2,0.13803003]
[1674022805038,38.41876444,1584.3,1584.2,0.13803003]
[1674022805234,36.76662193,1584.3,1584.2,0.13803003]
[1674022805440,38.41877219,1584.3,1584.2,0.13803003]
[1674022805642,36.76662193,1584.3,1584.2,0.13803003]
[1674022805854,38.41890591,1584.3,1584.2,0.13803003]
[1674022811678,37.78216418,1584.3,1584.2,0.13803003]
[1674022811873,38.41890591,1584.3,1584.2,0.13803003]
[1674022812640,39.10427265,1584.3,1584.2,0.13803003]
[1674022812784,33.49103091,1584.3,1584.2,0.13803003]
[1674022812996,30.64074693,1584.3,1584.2,0.13803003]
[1674022815250,28.28003091,1584.3,1584.2,0.13803003]
[1674022815832,26.62774693,1584.3,1584.2,0.13803003]
[1674022816701,26.85774693,1584.3,1584.2,0.13803003]
[1674022817989,27.84905268,1584.3,1584.2,0.13803003]
[1674022818930,24.84905268,1584.3,1584.2,1.43103003]
[1674022819089,11.37666799,1584.3,1584.2,1.59360472]
[1674022819306,10.71571427,1584.3,1584.2,1.59360472]
[1674022819562,11.37663333,1584.3,1584.2,1.59360472]
[1674022819889,10.71571427,1584.3,1584.2,0.30060472]
[1674022820193,10.71571427,1584.3,1584.2,0.13803003]
[1674022820194,10.38531138,1584.3,1584.2,0.13803003]
[1674022820356,16.69724138,1584.3,1584.2,0.13803003]
[1674022821560,16.69724138,1584.3,1584.2,1.43103003]
[1674022821873,10.38531138,1584.3,1584.2,1.43103003]
[1674022822198,9.72440852,1584.3,1584.2,1.43103003]
[1674022822350,9.72440852,1584.3,1584.2,0.30060472]
[1674022822723,9.72440852,1584.3,1584.2,0.13803003]
[1674022823184,9.72440852,1584.3,1584.2,1.43103003]
[1674022823714,9.72440852,1584.3,1584.2,1.43329245]
[1674022823715,0.06585445,1584.3,1584.2,1.43329245]
[1674022823963,0.06585445,1584.3,1584.2,2.63129245]
[1674022824151,0.06585445,1584.3,1584.2,8.94362245]
[1674022824362,0.06585445,1584.3,1584.2,10.85660436]
[1674022824597,0.06585445,1584.3,1584.2,4.54427436]
[1674022824764,0.06585445,1584.3,1584.2,1.43329245]
[1674022824972,0.06585445,1584.3,1584.2,0.14029245]
[1674022824973,3.18247852,1584.3,1584.2,0.14029245]
[1674022825183,9.49440852,1584.3,1584.2,0.13803003]
[1674022826026,9.72440852,1584.3,1584.2,0.13803003]
[1674022830470,3.41247852,1584.3,1584.2,1.43103003]
[1674022830884,3.41247852,1584.3,1584.2,1.59386725]
[1674022831091,9.72440852,1584.3,1584.2,0.30086725]
[1674022831312,9.72440852,1584.3,1584.2,0.13803003]
[1674022836612,9.72440852,1584.3,1584.0,0.81558459]
[1674022836817,3.11662407,1584.2,1584.0,0.81558459]
[1674022839959,3.11662407,1584.1,1584.0,0.81558459]
[1674022840150,9.42935407,1584.1,1583.9,20.39247003]
[1674022840339,3.11662407,1584.0,1583.9,14.81874976]
[1674022841130,3.11662407,1584.0,1583.9,3.78374976]
[1674022841290,3.11662407,1584.0,1583.9,1.46317003]
[1674022842912,9.42975407,1584.0,1583.9,1.46317003]
[1674022843124,9.42975407,1584.0,1583.9,0.26517003]
[1674022843280,9.49560852,1584.0,1583.9,0.19917003]
[1674022848705,9.72560852,1584.0,1583.9,0.19917003]
[1674022848896,23.95570237,1584.0,1583.9,0.19917003]
[1674022857862,23.95570237,1584.0,1583.9,0.19657006]
[1674022859414,27.61660523,1584.0,1583.9,0.19657006]
[1674022859609,28.46791155,1584.0,1583.9,0.19657006]
[1674022859818,28.25334696,1584.0,1583.9,0.19657006]
[1674022860222,23.64951311,1584.0,1583.9,0.19657006]
[1674022860593,16.03873852,1584.0,1583.9,0.19657006]
[1674022864731,16.03873852,1584.0,1583.9,0.63635573]
[1674022868855,22.35186852,1584.0,1583.9,0.63635573]
[1674022874111,23.01277138,1584.0,1583.9,0.63635573]
[1674022875221,26.04471461,1584.0,1583.9,0.63635573]
[1674022875376,27.03602036,1584.0,1583.9,0.63635573]
[1674022875588,26.58957093,1584.0,1583.9,0.63635573]
[1674022875931,26.04378718,1584.0,1583.9,0.63635573]
[1674022876103,26.25824061,1584.0,1583.9,0.63635573]
[1674022876753,27.24954636,1584.0,1583.9,0.63635573]
[1674022877632,26.58957093,1584.0,1583.9,0.63635573]
[1674022877847,27.03514181,1584.0,1583.9,0.63635573]
[1674022878060,26.58957093,1584.0,1583.9,0.63635573]
[1674022878232,27.03516075,1584.0,1583.9,0.63635573]
[1674022878428,27.24961418,1584.0,1583.9,0.63635573]
[1674022879075,26.58957093,1584.0,1583.9,0.63635573]
[1674022879681,27.69722597,1584.0,1583.9,0.63635573]
[1674022880140,26.92037365,1584.0,1583.9,0.63635573]
[1674022880528,27.25054916,1584.0,1583.9,0.63318673]
[1674022880851,28.35626637,1584.0,1583.9,0.63318673]
[1674022881063,26.70398239,1584.0,1583.9,0.63318673]
[1674022881273,26.91843582,1584.0,1583.9,0.63318673]
[1674022881800,27.69383744,1584.0,1583.9,0.63318673]
[1674022882009,28.5707198,1584.0,1583.9,0.63318673]
[1674022882268,27.25054916,1584.0,1583.9,0.46701665]
[1674022883113,26.9185477,1584.0,1583.9,0.46701665]
[1674022885584,2.69185477,1583.9,1583.4,1.40520006]
[1674022885808,18.10639179,1583.5,1583.4,0.63159294]
[1674022886121,49.16010407,1583.5,1583.4,0.63159294]
[1674022886315,56.21416007,1583.5,1583.4,0.42439288]
[1674022886529,1.0,1583.4,1583.3,0.65291]
[1674022886894,31.87247542,1583.4,1583.3,0.65291]
[1674022887050,32.50921715,1583.4,1583.3,0.65291]
[1674022887259,34.96918894,1583.4,1583.3,0.65291]
[1674022887469,36.79920641,1583.4,1583.3,0.65291]
[1674022887888,31.35786903,1583.4,1583.3,0.65291]
[1674022888130,9.43214407,1583.4,1583.3,0.65291]
[1674022888803,9.43214407,1583.4,1583.3,0.60869954]
[1674022889632,9.66214407,1583.4,1583.3,0.60869954]
[1674022890861,9.72799852,1583.4,1583.3,0.53369954]
[1674022891551,16.04351852,1583.4,1583.3,0.53369954]
[1674022893544,22.35903852,1583.4,1583.3,0.53369954]
[1674022894670,22.99578025,1583.4,1583.3,0.53369954]
[1674022894914,10.36474025,1583.4,1583.3,0.53369954]
[1674022896147,16.68026025,1583.4,1583.3,0.53369954]
[1674022896361,22.99578025,1583.4,1583.3,0.53369954]
[1674022898232,27.00877027,1583.4,1583.3,0.53369954]
[1674022898659,28.43577027,1583.4,1583.3,0.53369954]
[1674022900066,45.43577027,1583.4,1583.3,0.53369954]
[1674022901025,49.21877027,1583.4,1583.3,0.53369954]
[1674022902971,50.65277027,1583.4,1583.3,0.53369954]
[1674022905044,49.22577027,1583.4,1583.3,0.53369954]
[1674022911795,44.57602854,1583.4,1583.3,0.53369954]
[1674022912932,45.21277027,1583.4,1583.3,0.53369954]
[1674022913146,43.77877027,1583.4,1583.3,0.53369954]
[1674022913745,44.00877027,1583.4,1583.3,0.53072512]
[1674022915212,39.99578025,1583.4,1583.3,0.53072512]
[1674022920226,25.99578025,1583.4,1583.3,0.53072512]
[1674022921235,9.49799852,1583.4,1583.3,0.5329889]
[1674022921452,3.18247852,1583.4,1583.3,1.9549889]
[1674022921776,3.18247852,1583.4,1583.3,2.17250455]
[1674022924977,3.18247852,1583.4,1583.3,0.75050455]
[1674022925158,0.06585445,1583.4,1583.3,0.75050455]
[1674022927599,10.819,1583.5,1583.3,0.75050455]
[1674022927600,17.19999445,1583.5,1583.3,0.75050455]
[1674022927772,20.31661852,1583.5,1583.3,0.75050455]
[1674022927977,20.31661852,1583.5,1583.4,0.07505046]
[1674022928188,20.31661852,1583.5,1583.4,1.36805046]
[1674022931598,10.88485445,1583.5,1583.4,2.80205046]
[1674022939319,10.88172168,1583.5,1583.4,23.18261046]
[1674022939522,10.88172168,1583.5,1583.4,24.27927627]
[1674022939737,10.88172168,1583.5,1583.4,23.18261046]
[1674022940173,10.88172168,1583.5,1583.4,24.27928011]
[1674022941259,10.88172168,1583.5,1583.4,23.18261046]
[1674022944078,10.88172168,1583.5,1583.4,23.18661046]
[1674022944422,10.88172168,1583.5,1583.4,23.24861046]
[1674022947563,10.88172168,1583.5,1583.4,21.81461046]
[1674022947783,10.88172168,1583.5,1583.4,23.24861046]
[1674022947989,10.88172168,1583.5,1583.4,28.73415294]
[1674022950687,10.88172168,1583.5,1583.4,27.3452087]
[1674022951032,10.88172168,1583.5,1583.4,26.24861046]
[1674022951186,10.88172168,1583.5,1583.4,27.34524202]
[1674022952090,10.88172168,1583.5,1583.4,26.24861046]
[1674022952558,10.88172168,1583.5,1583.4,27.34524569]
[1674022953020,10.88172168,1583.5,1583.4,26.24861046]
[1674022953188,10.88172168,1583.5,1583.4,27.34525224]
[1674022955283,10.88172168,1583.5,1583.4,28.73332439]
[1674022956640,10.88172168,1583.5,1583.4,27.34525224]
[1674022957218,10.88172168,1583.5,1583.4,28.7337139]